[Event "*** SCC Grand Prix: Titled Tuesday Blitz"]
[Site "Chess.com"]
[Date "2020.09.29"]
[Round "9"]
[White "Klavdia_Nik"]
[Black "dianamirza"]
[Result "1-0"]
[WhiteElo "2169"]
[BlackElo "1937"]
[TimeControl "180+1"]
[EndTime "11:38:02 PDT"]
[Termination "Klavdia_Nik won by resignation"]

1. Nf3 {[%clk 0:02:59.8]} 1... Nf6 {[%clk 0:02:56.6]} 2. c4 {[%clk 0:02:58.3]}
2... c5 {[%clk 0:02:53.3]} 3. b3 {[%clk 0:02:57.5]} 3... g6 {[%clk 0:02:52.9]}
4. Bb2 {[%clk 0:02:57.9]} 4... Bg7 {[%clk 0:02:53.8]} 5. g3 {[%clk 0:02:58.3]}
5... O-O {[%clk 0:02:54.2]} 6. Bg2 {[%clk 0:02:58.9]} 6... Nc6 {[%clk 0:02:54]}
7. O-O {[%clk 0:02:59.5]} 7... d6 {[%clk 0:02:52.1]} 8. d4 {[%clk 0:02:59]} 8...
cxd4 {[%clk 0:02:51.8]} 9. Nxd4 {[%clk 0:02:59.1]} 9... Qc7 {[%clk 0:02:49.5]}
10. Nc3 {[%clk 0:02:58.8]} 10... Nxd4 {[%clk 0:02:46.3]} 11. Qxd4 {[%clk
0:02:58.3]} 11... Nd7 {[%clk 0:02:47.2]} 12. Qxg7+ {[%clk 0:02:48.7]} 12... Kxg7
{[%clk 0:02:46.2]} 13. Nd5+ {[%clk 0:02:49.1]} 1-0

[Event "*** SCC Grand Prix: Titled Tuesday Blitz"]
[Site "Chess.com"]
[Date "2020.09.29"]
[Round "9"]
[White "FontVella8"]
[Black "frederiksvane"]
[Result "0-1"]
[WhiteElo "2484"]
[BlackElo "2672"]
[TimeControl "180+1"]
[EndTime "11:39:29 PDT"]
[Termination "frederiksvane won by resignation"]

1. e4 {[%clk 0:03:00.9]} 1... c5 {[%clk 0:03:00.2]} 2. Nf3 {[%clk 0:03:01.1]}
2... g6 {[%clk 0:02:59.3]} 3. d4 {[%clk 0:03:00.8]} 3... cxd4 {[%clk 0:03:00.2]}
4. Qxd4 {[%clk 0:03:01.3]} 4... Nf6 {[%clk 0:02:59.6]} 5. Nc3 {[%clk 0:03:01.5]}
5... Nc6 {[%clk 0:02:59.8]} 6. Qa4 {[%clk 0:03:01.9]} 6... d6 {[%clk 0:03:00.2]}
7. e5 {[%clk 0:03:02.2]} 7... dxe5 {[%clk 0:03:00.8]} 8. Nxe5 {[%clk 0:03:02.8]}
8... Bg7 {[%clk 0:03:01.2]} 9. Nxc6 {[%clk 0:02:59.4]} 9... bxc6 {[%clk
0:03:02.1]} 10. Qxc6+ {[%clk 0:02:59.3]} 10... Bd7 {[%clk 0:03:01]} 11. Qf3
{[%clk 0:02:59]} 11... O-O {[%clk 0:02:59.5]} 12. h3 {[%clk 0:02:58.1]} 12...
Qc7 {[%clk 0:02:56.4]} 13. Bf4 {[%clk 0:02:57.8]} 13... Qb6 {[%clk 0:02:55]} 14.
O-O-O {[%clk 0:02:55.7]} 14... Bc6 {[%clk 0:02:48.3]} 15. Qe3 {[%clk 0:02:55.1]}
15... Qb7 {[%clk 0:02:48.6]} 16. f3 {[%clk 0:02:50.8]} 16... Nd5 {[%clk
0:02:47.5]} 17. Nxd5 {[%clk 0:02:48.2]} 17... Qxb2+ {[%clk 0:02:43.2]} 18. Kd2
{[%clk 0:02:48.3]} 18... Bxd5 {[%clk 0:02:42.1]} 19. Bd3 {[%clk 0:02:43.8]}
19... e5 {[%clk 0:02:31.9]} 20. Bh6 {[%clk 0:02:43.1]} 20... Bxh6 {[%clk
0:02:25]} 21. Qxh6 {[%clk 0:02:43.1]} 21... Rfe8 {[%clk 0:02:23.9]} 22. Rhe1
{[%clk 0:02:41.8]} 22... Rad8 {[%clk 0:02:22.7]} 23. Ke2 {[%clk 0:02:40.7]}
23... e4 {[%clk 0:02:22.9]} 24. fxe4 {[%clk 0:02:37.4]} 24... Bxe4 {[%clk
0:02:21.6]} 25. Kf1 {[%clk 0:02:36.2]} 25... Bxd3+ {[%clk 0:02:14.6]} 26. cxd3
{[%clk 0:02:35.3]} 26... Qxa2 {[%clk 0:02:04.1]} 27. Rd2 {[%clk 0:02:24.9]}
27... Rxe1+ {[%clk 0:02:02.9]} 28. Kxe1 {[%clk 0:02:25.8]} 28... Re8+ {[%clk
0:02:03.1]} 0-1

[Event "*** SCC Grand Prix: Titled Tuesday Blitz"]
[Site "Chess.com"]
[Date "2020.09.29"]
[Round "9"]
[White "josorio78"]
[Black "dopolian"]
[Result "0-1"]
[WhiteElo "2324"]
[BlackElo "2438"]
[TimeControl "180+1"]
[EndTime "11:39:52 PDT"]
[Termination "dopolian won by resignation"]

1. Nf3 {[%clk 0:03:00]} 1... Nf6 {[%clk 0:02:54.5]} 2. g3 {[%clk 0:02:59.9]}
2... b6 {[%clk 0:02:54.7]} 3. Bg2 {[%clk 0:03:00.4]} 3... Bb7 {[%clk 0:02:55.6]}
4. O-O {[%clk 0:03:00.9]} 4... g6 {[%clk 0:02:55.8]} 5. d3 {[%clk 0:03:01.3]}
5... Bg7 {[%clk 0:02:55.7]} 6. e4 {[%clk 0:03:01.7]} 6... d5 {[%clk 0:02:55.4]}
7. exd5 {[%clk 0:02:58.1]} 7... Nxd5 {[%clk 0:02:53.8]} 8. Re1 {[%clk
0:02:57.6]} 8... O-O {[%clk 0:02:53.4]} 9. c3 {[%clk 0:02:55.4]} 9... Nd7 {[%clk
0:02:52.4]} 10. d4 {[%clk 0:02:55.4]} 10... e6 {[%clk 0:02:50.8]} 11. Nbd2
{[%clk 0:02:54.2]} 11... c5 {[%clk 0:02:50.2]} 12. Nc4 {[%clk 0:02:51.1]} 12...
Qc7 {[%clk 0:02:48.9]} 13. Bg5 {[%clk 0:02:43.7]} 13... cxd4 {[%clk 0:02:47.8]}
14. Bf1 {[%clk 0:02:12.2]} 14... dxc3 {[%clk 0:02:46.3]} 15. bxc3 {[%clk
0:02:13.1]} 15... Nxc3 {[%clk 0:02:43.8]} 16. Qd2 {[%clk 0:02:13.3]} 16... Bxf3
{[%clk 0:02:41.9]} 17. Rac1 {[%clk 0:02:08.1]} 17... Ne4 {[%clk 0:02:32.9]} 18.
Qe3 {[%clk 0:02:05]} 18... Nxg5 {[%clk 0:02:32]} 19. Qxg5 {[%clk 0:02:05.9]}
19... Qc5 {[%clk 0:02:29.7]} 20. Qf4 {[%clk 0:02:04.7]} 20... Qf5 {[%clk
0:02:27.6]} 21. Qd6 {[%clk 0:02:03.8]} 21... Nc5 {[%clk 0:02:22.4]} 22. Ne3
{[%clk 0:02:01.4]} 22... Qe5 {[%clk 0:02:08.7]} 23. Qe7 {[%clk 0:01:59.7]} 23...
Bf6 {[%clk 0:02:03.8]} 0-1

[Event "*** SCC Grand Prix: Titled Tuesday Blitz"]
[Site "Chess.com"]
[Date "2020.09.29"]
[Round "9"]
[White "cassoulet"]
[Black "goldenpuppy"]
[Result "1-0"]
[WhiteElo "2635"]
[BlackElo "2406"]
[TimeControl "180+1"]
[EndTime "11:40:48 PDT"]
[Termination "cassoulet won by resignation"]

1. d4 {[%clk 0:03:00.9]} 1... Nf6 {[%clk 0:02:59.3]} 2. c4 {[%clk 0:02:57.3]}
2... e6 {[%clk 0:02:59.7]} 3. Nc3 {[%clk 0:02:57.5]} 3... Bb4 {[%clk 0:02:59.8]}
4. e3 {[%clk 0:02:55.4]} 4... O-O {[%clk 0:02:59]} 5. Bd2 {[%clk 0:02:52.8]}
5... d5 {[%clk 0:02:57.9]} 6. Nf3 {[%clk 0:02:51.5]} 6... c5 {[%clk 0:02:55.7]}
7. cxd5 {[%clk 0:02:48.2]} 7... exd5 {[%clk 0:02:54.7]} 8. dxc5 {[%clk
0:02:46.2]} 8... Bxc5 {[%clk 0:02:54.1]} 9. Bd3 {[%clk 0:02:46.4]} 9... Nc6
{[%clk 0:02:54.2]} 10. O-O {[%clk 0:02:46.1]} 10... a6 {[%clk 0:02:54.5]} 11.
Rc1 {[%clk 0:02:45.6]} 11... Ba7 {[%clk 0:02:53.3]} 12. a3 {[%clk 0:02:45.9]}
12... d4 {[%clk 0:02:52.7]} 13. exd4 {[%clk 0:02:45.6]} 13... Nxd4 {[%clk
0:02:53.6]} 14. Nxd4 {[%clk 0:02:45.3]} 14... Qxd4 {[%clk 0:02:53.5]} 15. Be3
{[%clk 0:02:43.3]} 15... Qg4 {[%clk 0:02:53.4]} 16. Bxa7 {[%clk 0:02:40.5]}
16... Qxd1 {[%clk 0:02:51.4]} 17. Rfxd1 {[%clk 0:02:41.4]} 17... Rxa7 {[%clk
0:02:51.1]} 18. Na4 {[%clk 0:02:34.2]} 18... Bd7 {[%clk 0:02:46]} 19. Nb6 {[%clk
0:02:31.7]} 19... Bc6 {[%clk 0:02:46]} 20. f3 {[%clk 0:02:28.9]} 20... a5 {[%clk
0:02:42.2]} 21. Rc5 {[%clk 0:02:18.9]} 21... Nd7 {[%clk 0:02:22.3]} 22. Nxd7
{[%clk 0:02:17]} 22... Bxd7 {[%clk 0:02:23.2]} 23. Bxh7+ {[%clk 0:02:17.3]}
23... Kxh7 {[%clk 0:02:23.6]} 24. Rxd7 {[%clk 0:02:17.9]} 24... Kg6 {[%clk
0:02:15.9]} 25. Rb5 {[%clk 0:02:11]} 25... Rb8 {[%clk 0:02:07.1]} 26. Rb6+
{[%clk 0:02:11]} 26... f6 {[%clk 0:02:04.5]} 27. Kf2 {[%clk 0:02:11.9]} 27...
Ra6 {[%clk 0:02:04.2]} 28. Rbxb7 {[%clk 0:02:10.2]} 28... Rxb7 {[%clk 0:02:04]}
29. Rxb7 {[%clk 0:02:11.1]} 29... Rc6 {[%clk 0:02:04.3]} 30. g4 {[%clk
0:02:10.3]} 30... Rc2+ {[%clk 0:02:03.5]} 31. Kg3 {[%clk 0:02:10.4]} 31... a4
{[%clk 0:01:52.9]} 32. h4 {[%clk 0:02:09.7]} 32... Kh6 {[%clk 0:01:52]} 33. Rb6
{[%clk 0:02:07.3]} 33... Kg6 {[%clk 0:01:51.5]} 34. h5+ {[%clk 0:02:04.8]} 34...
Kf7 {[%clk 0:01:49]} 35. Kf4 {[%clk 0:02:04.3]} 35... Ke7 {[%clk 0:01:47.8]} 36.
Rb4 {[%clk 0:02:03.7]} 36... Ke6 {[%clk 0:01:46.6]} 37. Rb7 {[%clk 0:01:55.6]}
37... Rc4+ {[%clk 0:01:39.2]} 38. Kg3 {[%clk 0:01:54.8]} 38... Rc2 {[%clk
0:01:39.1]} 39. Rxg7 {[%clk 0:01:53.8]} 39... Rxb2 {[%clk 0:01:39.4]} 40. Ra7
{[%clk 0:01:54.3]} 1-0

[Event "*** SCC Grand Prix: Titled Tuesday Blitz"]
[Site "Chess.com"]
[Date "2020.09.29"]
[Round "9"]
[White "mishanick"]
[Black "Msb2"]
[Result "0-1"]
[WhiteElo "3003"]
[BlackElo "2929"]
[TimeControl "180+1"]
[EndTime "11:40:54 PDT"]
[Termination "Msb2 won by resignation"]

1. d4 {[%clk 0:03:00.9]} 1... Nf6 {[%clk 0:02:56.6]} 2. c4 {[%clk 0:03:01.4]}
2... e6 {[%clk 0:02:57]} 3. Nc3 {[%clk 0:03:01.2]} 3... Bb4 {[%clk 0:02:56.9]}
4. Qc2 {[%clk 0:03:01.5]} 4... d5 {[%clk 0:02:56.9]} 5. cxd5 {[%clk 0:03:01.4]}
5... exd5 {[%clk 0:02:57.8]} 6. Bg5 {[%clk 0:03:01.4]} 6... h6 {[%clk
0:02:58.5]} 7. Bh4 {[%clk 0:03:01.5]} 7... g5 {[%clk 0:02:56.1]} 8. Bg3 {[%clk
0:03:01.4]} 8... Nc6 {[%clk 0:02:56.1]} 9. e3 {[%clk 0:03:00.7]} 9... h5 {[%clk
0:02:56.7]} 10. Bb5 {[%clk 0:03:00.6]} 10... h4 {[%clk 0:02:56.1]} 11. Be5
{[%clk 0:03:00.8]} 11... O-O {[%clk 0:02:56.5]} 12. h3 {[%clk 0:03:01]} 12...
Ne4 {[%clk 0:02:51.7]} 13. Nf3 {[%clk 0:02:57.4]} 13... Nxe5 {[%clk 0:02:33]}
14. Nxe5 {[%clk 0:02:54.4]} 14... f6 {[%clk 0:02:09.1]} 15. Nf3 {[%clk
0:02:52.5]} 15... c6 {[%clk 0:02:03.9]} 16. Bd3 {[%clk 0:02:52.7]} 16... Qe7
{[%clk 0:01:59.9]} 17. Nd2 {[%clk 0:02:41.4]} 17... f5 {[%clk 0:01:56.5]} 18. a3
{[%clk 0:02:37]} 18... Bd6 {[%clk 0:01:54.5]} 19. Nf3 {[%clk 0:02:36.3]} 19...
Bd7 {[%clk 0:01:53.5]} 20. Ne2 {[%clk 0:02:25.5]} 20... Kh8 {[%clk 0:01:47.7]}
21. b4 {[%clk 0:01:55]} 21... Rae8 {[%clk 0:01:42.2]} 22. Qb2 {[%clk 0:01:53]}
22... Nxf2 {[%clk 0:01:38.9]} 23. Ne5 {[%clk 0:01:34.6]} 23... Qxe5 {[%clk
0:01:23.5]} 24. dxe5 {[%clk 0:01:32.1]} 24... Nxd3+ {[%clk 0:01:23.1]} 0-1

[Event "*** SCC Grand Prix: Titled Tuesday Blitz"]
[Site "Chess.com"]
[Date "2020.09.29"]
[Round "9"]
[White "superchthonic"]
[Black "Rakesh"]
[Result "0-1"]
[WhiteElo "2560"]
[BlackElo "2451"]
[TimeControl "180+1"]
[EndTime "11:41:00 PDT"]
[Termination "Rakesh won by resignation"]

1. Nf3 {[%clk 0:03:00.9]} 1... c5 {[%clk 0:03:00.9]} 2. g3 {[%clk 0:03:00.9]}
2... d5 {[%clk 0:03:00]} 3. Bg2 {[%clk 0:03:01.8]} 3... Nc6 {[%clk 0:03:00.9]}
4. O-O {[%clk 0:03:01.7]} 4... Nf6 {[%clk 0:03:01.5]} 5. d3 {[%clk 0:03:02]}
5... e5 {[%clk 0:03:01.9]} 6. Nbd2 {[%clk 0:02:59.5]} 6... Bd6 {[%clk
0:02:59.8]} 7. e4 {[%clk 0:02:59]} 7... O-O {[%clk 0:03:00.7]} 8. exd5 {[%clk
0:02:58.1]} 8... Nxd5 {[%clk 0:03:01.6]} 9. Nc4 {[%clk 0:02:58.2]} 9... Re8
{[%clk 0:03:01.1]} 10. a4 {[%clk 0:02:57.5]} 10... Bg4 {[%clk 0:02:59.8]} 11. h3
{[%clk 0:02:56.9]} 11... Bh5 {[%clk 0:03:00.1]} 12. c3 {[%clk 0:02:53.9]} 12...
Bc7 {[%clk 0:02:59.5]} 13. Qb3 {[%clk 0:02:50.7]} 13... b6 {[%clk 0:02:57.2]}
14. Ng5 {[%clk 0:02:50.3]} 14... Be2 {[%clk 0:02:41.5]} 15. Re1 {[%clk
0:02:49.8]} 15... Bxd3 {[%clk 0:02:41.6]} 16. Nxe5 {[%clk 0:02:49.9]} 16... c4
{[%clk 0:02:40.1]} 17. Qb5 {[%clk 0:02:42.5]} 17... Nxe5 {[%clk 0:02:15.1]} 18.
Bxd5 {[%clk 0:01:46.2]} 18... h6 {[%clk 0:02:08.7]} 19. Nxf7 {[%clk 0:01:16.7]}
19... Nxf7 {[%clk 0:02:00.3]} 20. Rxe8+ {[%clk 0:01:10.8]} 20... Qxe8 {[%clk
0:01:59.7]} 21. Bxa8 {[%clk 0:01:11.4]} 21... Qe1+ {[%clk 0:01:41.1]} 22. Kh2
{[%clk 0:01:06.2]} 22... Qxf2+ {[%clk 0:01:39.2]} 23. Bg2 {[%clk 0:01:06.3]}
23... Bxg3+ {[%clk 0:01:37]} 0-1

[Event "*** SCC Grand Prix: Titled Tuesday Blitz"]
[Site "Chess.com"]
[Date "2020.09.29"]
[Round "9"]
[White "Khnykin_Nikolay"]
[Black "GMJustin"]
[Result "0-1"]
[WhiteElo "2087"]
[BlackElo "2265"]
[TimeControl "180+1"]
[EndTime "11:41:00 PDT"]
[Termination "GMJustin won by checkmate"]

1. e4 {[%clk 0:03:00.9]} 1... e5 {[%clk 0:02:32.5]} 2. Nf3 {[%clk 0:02:59.4]}
2... Nc6 {[%clk 0:02:32]} 3. Bc4 {[%clk 0:02:58.4]} 3... Bc5 {[%clk 0:02:30.2]}
4. b4 {[%clk 0:02:55.6]} 4... Bxb4 {[%clk 0:02:21.2]} 5. c3 {[%clk 0:02:55]}
5... Be7 {[%clk 0:02:16.6]} 6. Qb3 {[%clk 0:02:52.9]} 6... Nh6 {[%clk
0:02:00.1]} 7. d4 {[%clk 0:02:50.9]} 7... Na5 {[%clk 0:01:54.3]} 8. Qa4 {[%clk
0:02:41.9]} 8... Nxc4 {[%clk 0:01:53.4]} 9. Qxc4 {[%clk 0:02:41.5]} 9... exd4
{[%clk 0:01:38.8]} 10. Bxh6 {[%clk 0:02:37.4]} 10... gxh6 {[%clk 0:01:28]} 11.
Ne5 {[%clk 0:02:34.1]} 11... O-O {[%clk 0:01:21.8]} 12. Qxd4 {[%clk 0:02:32.2]}
12... Bf6 {[%clk 0:01:17.6]} 13. f4 {[%clk 0:02:30.4]} 13... d6 {[%clk
0:01:12.1]} 14. Qf2 {[%clk 0:02:22.8]} 14... dxe5 {[%clk 0:01:11.2]} 15. Qg3+
{[%clk 0:02:22.8]} 15... Bg7 {[%clk 0:01:09.4]} 16. fxe5 {[%clk 0:02:23.7]}
16... Qg5 {[%clk 0:01:09.2]} 17. Qxg5 {[%clk 0:02:22.9]} 17... hxg5 {[%clk
0:01:09.4]} 18. O-O {[%clk 0:02:22.5]} 18... Bxe5 {[%clk 0:01:08.7]} 19. Rf5
{[%clk 0:02:21.2]} 19... Bxf5 {[%clk 0:01:06.1]} 20. exf5 {[%clk 0:02:19.4]}
20... Rad8 {[%clk 0:01:06.7]} 21. Na3 {[%clk 0:02:19.5]} 21... Bxc3 {[%clk
0:01:05.2]} 22. Rc1 {[%clk 0:02:18.9]} 22... Bb2 {[%clk 0:00:59.4]} 23. Rxc7
{[%clk 0:02:18.9]} 23... Bxa3 {[%clk 0:00:59.4]} 24. Rxb7 {[%clk 0:02:18.8]}
24... Rd2 {[%clk 0:00:58.6]} 25. Rxa7 {[%clk 0:02:17.9]} 25... Bc5+ {[%clk
0:00:58.1]} 26. Kf1 {[%clk 0:02:17.3]} 26... Bxa7 {[%clk 0:00:57.9]} 27. g4
{[%clk 0:02:13.7]} 27... Rb8 {[%clk 0:00:51.4]} 28. Ke1 {[%clk 0:02:12.7]} 28...
Rxa2 {[%clk 0:00:50]} 29. h4 {[%clk 0:02:12.3]} 29... Rb1# {[%clk 0:00:50.9]}
0-1

[Event "*** SCC Grand Prix: Titled Tuesday Blitz"]
[Site "Chess.com"]
[Date "2020.09.29"]
[Round "9"]
[White "ExtremeLearner"]
[Black "nrvisakh"]
[Result "0-1"]
[WhiteElo "2332"]
[BlackElo "2778"]
[TimeControl "180+1"]
[EndTime "11:41:11 PDT"]
[Termination "nrvisakh won by resignation"]

1. d4 {[%clk 0:03:00.9]} 1... Nf6 {[%clk 0:02:46.5]} 2. Bf4 {[%clk 0:02:56.5]}
2... g6 {[%clk 0:02:47.4]} 3. Nc3 {[%clk 0:02:56.1]} 3... d5 {[%clk 0:02:44.2]}
4. e3 {[%clk 0:02:55.6]} 4... Bg7 {[%clk 0:02:44.3]} 5. h4 {[%clk 0:02:55.5]}
5... h5 {[%clk 0:02:43.2]} 6. Nf3 {[%clk 0:02:53.7]} 6... O-O {[%clk 0:02:43]}
7. Qd2 {[%clk 0:02:49.4]} 7... c5 {[%clk 0:02:40.8]} 8. dxc5 {[%clk 0:02:41.9]}
8... Qa5 {[%clk 0:02:37.5]} 9. a3 {[%clk 0:02:32]} 9... Qxc5 {[%clk 0:02:31.5]}
10. Rd1 {[%clk 0:02:18.4]} 10... Rd8 {[%clk 0:02:28.8]} 11. b4 {[%clk
0:02:12.2]} 11... Qb6 {[%clk 0:02:21.4]} 12. Na4 {[%clk 0:02:05.7]} 12... Qc6
{[%clk 0:02:21]} 13. b5 {[%clk 0:02:05.3]} 13... Qe8 {[%clk 0:02:20.9]} 14. Nc5
{[%clk 0:01:51.9]} 14... b6 {[%clk 0:02:15.3]} 15. Nb3 {[%clk 0:01:43.8]} 15...
Ne4 {[%clk 0:02:14.5]} 16. Qd3 {[%clk 0:01:38.6]} 16... Bc3+ {[%clk 0:02:06.1]}
17. Ke2 {[%clk 0:01:35.5]} 17... Bf5 {[%clk 0:02:05.3]} 18. Qxd5 {[%clk
0:01:21.5]} 18... Rxd5 {[%clk 0:02:03.6]} 19. Rxd5 {[%clk 0:01:22.4]} 19... Be6
{[%clk 0:01:55.5]} 20. Rd1 {[%clk 0:01:13.7]} 20... Bc4+ {[%clk 0:01:54.5]} 21.
Rd3 {[%clk 0:01:13]} 21... Bxd3+ {[%clk 0:01:53.5]} 22. cxd3 {[%clk 0:01:13.9]}
22... Qxb5 {[%clk 0:01:53.2]} 23. Nfd4 {[%clk 0:01:12.1]} 23... Bxd4 {[%clk
0:01:52.8]} 24. Nxd4 {[%clk 0:01:13]} 24... Qb2+ {[%clk 0:01:49.9]} 25. Kf3
{[%clk 0:01:13.5]} 25... Nd2+ {[%clk 0:01:49.5]} 26. Kg3 {[%clk 0:01:12.4]}
26... Qc1 {[%clk 0:01:45.4]} 27. e4 {[%clk 0:01:09.3]} 27... Nxf1+ {[%clk
0:01:41.3]} 0-1

[Event "*** SCC Grand Prix: Titled Tuesday Blitz"]
[Site "Chess.com"]
[Date "2020.09.29"]
[Round "9"]
[White "DenLaz"]
[Black "Lion-Al-Messi"]
[Result "1-0"]
[WhiteElo "2800"]
[BlackElo "2534"]
[TimeControl "180+1"]
[EndTime "11:41:31 PDT"]
[Termination "DenLaz won by resignation"]

1. Nf3 {[%clk 0:03:00.9]} 1... d5 {[%clk 0:03:00]} 2. b3 {[%clk 0:02:58.8]} 2...
Nf6 {[%clk 0:03:00]} 3. Bb2 {[%clk 0:02:59.1]} 3... Nc6 {[%clk 0:03:00.6]} 4. c4
{[%clk 0:02:58.1]} 4... d4 {[%clk 0:02:59.7]} 5. e3 {[%clk 0:02:58.5]} 5... e5
{[%clk 0:02:59.5]} 6. exd4 {[%clk 0:02:58.8]} 6... exd4 {[%clk 0:03:00.4]} 7. d3
{[%clk 0:02:57.2]} 7... Bb4+ {[%clk 0:03:00.1]} 8. Nbd2 {[%clk 0:02:57.6]} 8...
O-O {[%clk 0:03:00.7]} 9. Be2 {[%clk 0:02:58.2]} 9... Re8 {[%clk 0:03:00.2]} 10.
O-O {[%clk 0:02:58.6]} 10... Bf5 {[%clk 0:02:59.9]} 11. a3 {[%clk 0:02:57.4]}
11... Bd6 {[%clk 0:02:55.2]} 12. b4 {[%clk 0:02:56.4]} 12... a5 {[%clk
0:02:54.9]} 13. b5 {[%clk 0:02:54.1]} 13... Ne5 {[%clk 0:02:55.1]} 14. Qc2
{[%clk 0:02:50]} 14... Neg4 {[%clk 0:02:52.4]} 15. Rfe1 {[%clk 0:02:48.7]} 15...
Nh5 {[%clk 0:02:47.5]} 16. h3 {[%clk 0:02:45.3]} 16... Nf4 {[%clk 0:02:45.5]}
17. Bf1 {[%clk 0:02:44.2]} 17... Ne5 {[%clk 0:02:24.7]} 18. Nxe5 {[%clk
0:02:42.8]} 18... Bxe5 {[%clk 0:02:25.6]} 19. Nf3 {[%clk 0:02:42.3]} 19... f6
{[%clk 0:02:09.1]} 20. a4 {[%clk 0:02:35.6]} 20... Qd7 {[%clk 0:02:06.1]} 21. c5
{[%clk 0:02:35]} 21... Qf7 {[%clk 0:02:05.4]} 22. Bxd4 {[%clk 0:02:27.5]} 22...
Qg6 {[%clk 0:01:55.2]} 23. Bxe5 {[%clk 0:02:26.3]} 23... fxe5 {[%clk 0:01:51]}
24. Kh2 {[%clk 0:02:23.9]} 24... Nxd3 {[%clk 0:01:42.8]} 25. Bxd3 {[%clk
0:02:16.9]} 25... Bxd3 {[%clk 0:01:43.7]} 26. Qb3+ {[%clk 0:02:17.5]} 26... Kh8
{[%clk 0:01:25]} 27. Nxe5 {[%clk 0:02:15.9]} 27... Rxe5 {[%clk 0:01:24.6]} 28.
Rxe5 {[%clk 0:02:14.5]} 28... Rf8 {[%clk 0:01:24.2]} 29. Rae1 {[%clk 0:02:11.7]}
29... h6 {[%clk 0:01:19.6]} 30. Qe6 {[%clk 0:02:07.3]} 30... Rxf2 {[%clk
0:01:01.3]} 31. Qxg6 {[%clk 0:02:06.1]} 31... Bxg6 {[%clk 0:01:02.2]} 32. Re7
{[%clk 0:02:06.5]} 32... Bf7 {[%clk 0:00:58.9]} 33. Rd1 {[%clk 0:02:01.8]} 33...
c6 {[%clk 0:00:57]} 34. Rxb7 {[%clk 0:01:59.1]} 34... Bd5 {[%clk 0:00:56.7]} 35.
Rxd5 {[%clk 0:01:59.3]} 35... cxd5 {[%clk 0:00:55.9]} 36. c6 {[%clk 0:02:00.2]}
36... Rc2 {[%clk 0:00:54.4]} 37. Rd7 {[%clk 0:02:00.1]} 37... Rxc6 {[%clk
0:00:48.3]} 38. bxc6 {[%clk 0:01:59.8]} 1-0

[Event "*** SCC Grand Prix: Titled Tuesday Blitz"]
[Site "Chess.com"]
[Date "2020.09.29"]
[Round "9"]
[White "liczner"]
[Black "LiamVrolijk"]
[Result "1-0"]
[WhiteElo "2711"]
[BlackElo "2835"]
[TimeControl "180+1"]
[EndTime "11:41:43 PDT"]
[Termination "liczner won by resignation"]

1. e4 {[%clk 0:03:00.9]} 1... e5 {[%clk 0:02:36]} 2. Nf3 {[%clk 0:03:00.7]} 2...
Nc6 {[%clk 0:02:35.7]} 3. Bb5 {[%clk 0:03:00.5]} 3... a6 {[%clk 0:02:33.1]} 4.
Bxc6 {[%clk 0:03:00.5]} 4... bxc6 {[%clk 0:02:32.7]} 5. Nxe5 {[%clk 0:02:42.1]}
5... Qg5 {[%clk 0:02:32.4]} 6. Nf3 {[%clk 0:02:40]} 6... Qxg2 {[%clk 0:02:31.8]}
7. Rg1 {[%clk 0:02:40.3]} 7... Qh3 {[%clk 0:02:28.2]} 8. d3 {[%clk 0:02:34.2]}
8... d5 {[%clk 0:02:24.6]} 9. Rg3 {[%clk 0:02:17.3]} 9... Qh5 {[%clk 0:02:23.9]}
10. Rg5 {[%clk 0:02:14.1]} 10... Qh3 {[%clk 0:02:23.3]} 11. Rg3 {[%clk 0:02:04]}
11... Qe6 {[%clk 0:02:21.4]} 12. Nc3 {[%clk 0:01:59.4]} 12... Nf6 {[%clk
0:02:20.6]} 13. Qe2 {[%clk 0:01:52.8]} 13... Nh5 {[%clk 0:02:14.6]} 14. Rg5
{[%clk 0:01:52.1]} 14... g6 {[%clk 0:02:14.6]} 15. Re5 {[%clk 0:01:51.7]} 15...
Bg7 {[%clk 0:02:04.9]} 16. Rxe6+ {[%clk 0:01:51.1]} 16... Bxe6 {[%clk
0:02:05.8]} 17. exd5 {[%clk 0:01:43.8]} 17... cxd5 {[%clk 0:02:06.7]} 18. Ng5
{[%clk 0:01:44]} 18... Kd7 {[%clk 0:01:59.6]} 19. Nxe6 {[%clk 0:01:42.3]} 19...
fxe6 {[%clk 0:02:00.5]} 20. Bd2 {[%clk 0:01:36.8]} 20... Rac8 {[%clk 0:01:59]}
21. O-O-O {[%clk 0:01:35.8]} 21... Rb8 {[%clk 0:01:59.4]} 22. Re1 {[%clk
0:01:33.9]} 22... Rhe8 {[%clk 0:01:57.2]} 23. Na4 {[%clk 0:01:33.4]} 23... Rb5
{[%clk 0:01:56.1]} 24. c4 {[%clk 0:01:19.3]} 24... Rbb8 {[%clk 0:01:52.8]} 25.
Bc3 {[%clk 0:01:09.1]} 25... Nf4 {[%clk 0:01:47.8]} 26. Qf3 {[%clk 0:01:04.7]}
26... Bh6 {[%clk 0:01:46.8]} 27. Bd2 {[%clk 0:00:55.3]} 27... Rf8 {[%clk
0:01:46.1]} 28. Nc5+ {[%clk 0:00:47.4]} 28... Kd6 {[%clk 0:01:40.9]} 29. Nxe6
{[%clk 0:00:47.1]} 1-0

[Event "*** SCC Grand Prix: Titled Tuesday Blitz"]
[Site "Chess.com"]
[Date "2020.09.29"]
[Round "9"]
[White "misterlamine"]
[Black "lider34"]
[Result "1-0"]
[WhiteElo "2307"]
[BlackElo "2379"]
[TimeControl "180+1"]
[EndTime "11:41:45 PDT"]
[Termination "misterlamine won by resignation"]

1. d4 {[%clk 0:03:00.9]} 1... Nf6 {[%clk 0:02:58.5]} 2. Nf3 {[%clk 0:03:01.2]}
2... g6 {[%clk 0:02:59.4]} 3. e3 {[%clk 0:03:01.1]} 3... Bg7 {[%clk 0:03:00.3]}
4. Be2 {[%clk 0:03:01.2]} 4... d6 {[%clk 0:03:00.4]} 5. O-O {[%clk 0:03:01.6]}
5... O-O {[%clk 0:03:01.3]} 6. c4 {[%clk 0:03:01.5]} 6... Nbd7 {[%clk
0:03:00.6]} 7. Nc3 {[%clk 0:03:01.8]} 7... e5 {[%clk 0:03:01]} 8. dxe5 {[%clk
0:03:01.1]} 8... dxe5 {[%clk 0:03:00.1]} 9. b3 {[%clk 0:03:00.8]} 9... Re8
{[%clk 0:02:58.4]} 10. Bb2 {[%clk 0:03:00.9]} 10... Qe7 {[%clk 0:02:57.5]} 11.
Nd5 {[%clk 0:03:00.8]} 11... Nxd5 {[%clk 0:02:56.4]} 12. cxd5 {[%clk 0:02:53.5]}
12... e4 {[%clk 0:02:49.9]} 13. Nd4 {[%clk 0:02:47.4]} 13... a6 {[%clk
0:02:45.6]} 14. Rb1 {[%clk 0:02:45.4]} 14... Nb6 {[%clk 0:02:36.1]} 15. Bc4
{[%clk 0:02:43.7]} 15... Rd8 {[%clk 0:02:31.8]} 16. Ne2 {[%clk 0:02:37.6]} 16...
Bg4 {[%clk 0:02:13]} 17. Bxg7 {[%clk 0:02:26.5]} 17... Kxg7 {[%clk 0:02:13.9]}
18. Qd4+ {[%clk 0:02:26.7]} 18... Kg8 {[%clk 0:02:07.6]} 19. Ng3 {[%clk
0:02:26.7]} 19... Re8 {[%clk 0:01:59.3]} 20. h3 {[%clk 0:02:23.5]} 20... Bd7
{[%clk 0:01:57.9]} 21. Be2 {[%clk 0:01:56.1]} 21... Rad8 {[%clk 0:01:56.1]} 22.
Rbc1 {[%clk 0:01:47.4]} 22... Bc6 {[%clk 0:01:47.8]} 23. Nxe4 {[%clk 0:01:05.7]}
23... Bxd5 {[%clk 0:01:39.9]} 24. Nf6+ {[%clk 0:01:02.5]} 24... Kf8 {[%clk
0:01:35.9]} 25. Nxh7+ {[%clk 0:00:58.3]} 25... Kg8 {[%clk 0:01:34.7]} 26. Nf6+
{[%clk 0:00:57.8]} 26... Kf8 {[%clk 0:01:34.1]} 27. Nxd5 {[%clk 0:00:52]} 1-0